Cogmind - Beta 16.1 @@@ ROGUE MODE // 2026.04.22 @ 01:32:40 Player: souux Result: Self-destructed Performance ------------- Evolutions (4) 2000 Regions Visited (12) 2400 Robots Destroyed (138) 690 Value Destroyed (3619) 3619 Prototype IDs (24) 480 Alien Tech Used (0) 0 Bonus (984) 984 TOTAL SCORE: 10173 Bonus ------- High Alert Combat Kills 385 Follower Combat Kills 299 Met Data Miner 300 Cogmind --------- Core Integrity 785/850 Matter 180/300 Energy 140/140 System Corruption 0% Temperature Cool (0) Movement Flying (117) Ox1 Location -6/Factory Parts ------- > --- POWER (1) -------- Light Deuterium Engine > --- PROPULSION (5) --- Xenon Bombardment Thruster Nuclear Pulse Thruster > --- UTILITY (7) ------ Medium Storage Unit Structural Scanner Advanced Visual Processing Unit Layered Light Armor Plating Hacking Suite Improved Hacking Suite Improved System Shield > --- WEAPON (2) ------- Chainsword > --- INVENTORY (10) --- Light Deuterium Engine Improved Cooling System High-capacity Matter Pod (200) Improved Sensor Array Transmission Jammer Authchip [Propulsion] Phase Cannon Peak State ------------ > --- POWER ------------ Light Deuterium Engine > --- PROPULSION ------- Flight Unit Xenon Bombardment Thruster Nuclear Pulse Thruster Nuclear Pulse Thruster Nuclear Pulse Thruster > --- UTILITY ---------- Medium Storage Unit Structural Scanner Advanced Visual Processing Unit Layered Light Armor Plating Hacking Suite Improved Hacking Suite Improved System Shield > --- WEAPON ----------- Chainsword > --- INVENTORY -------- Improved Cooling System High-capacity Matter Pod Improved Sensor Array Transmission Jammer Authchip [Propulsion] Phase Cannon [Rating: 51] Favorites ----------- Power Ion Engine Engine Ion Engine Power Core Micro Nuclear Core Propulsion Light Treads Treads Light Treads Leg Aluminum Leg Wheel Wheel Flight Unit Flight Unit Utility Seismic Detector Device Seismic Detector Storage Large Storage Unit Processor Improved Targeting Computer Hackware Hacking Suite Protection Hardened Medium Armor Plating Weapon Enhanced Autogun Energy Gun Improved Medium Laser Ballistic Gun Enhanced Autogun Launcher Advanced EMP Blaster Impact Weapon Hammer Slashing Weapon Chainsword Build | -11 -10 -10 -10 -9 -8 -8 -7 -7 -7 -7 -6 -6 ------- Run | Yrd Mat Min Exi Min Mat Sto Fac Low Low Dat Pro Fac Slots Evolved 8 | . . . . . 4 . 2 . . . . 2 Power . | . . . . . . . . . . . . . Propulsion 3 | . . . . . 2 . . . . . . 1 Utility 5 | . . . . . 2 . 2 . . . . 1 Weapon . | . . . . . . . . . . . . . Parts Attached 104 | 8 15 2 . . 36 11 15 2 1 . 2 12 Power 15 | 1 4 . . . 5 1 1 1 . . . 2 Engine 12 | 1 4 . . . 5 1 . . . . . 1 Core 3 | . . . . . . . 1 1 . . . 1 Reactor . | . . . . . . . . . . . . . Propulsion 34 | 3 3 2 . . 13 5 4 . . . . 4 Treads 15 | . 1 1 . . 8 5 . . . . . . Leg 2 | . 2 . . . . . . . . . . . Wheel 9 | 3 . 1 . . 5 . . . . . . . Hover . | . . . . . . . . . . . . . Flight 8 | . . . . . . . 4 . . . . 4 Utility 32 | 2 4 . . . 7 2 8 . 1 . 2 6 Device 10 | 1 2 . . . 3 . 4 . . . . . Storage 4 | 1 1 . . . . 1 . . . . . 1 Processor 6 | . . . . . 1 1 . . 1 . 1 2 Hackware 6 | . . . . . . . 3 . . . 1 2 Protection 6 | . 1 . . . 3 . 1 . . . . 1 Artifact . | . . . . . . . . . . . . . Weapon 23 | 2 4 . . . 11 3 2 1 . . . . Energy Gun 2 | . . . . . 2 . . . . . . . Energy Cannon . | . . . . . . . . . . . . . Ballistic Gun 14 | 2 3 . . . 7 2 . . . . . . Ballistic Cannon . | . . . . . . . . . . . . . Launcher 4 | . 1 . . . 1 1 . 1 . . . . Special Weapon . | . . . . . . . . . . . . . Impact Weapon 1 | . . . . . 1 . . . . . . . Slashing Weapon 2 | . . . . . . . 2 . . . . . Piercing Weapon . | . . . . . . . . . . . . . Special Melee Weapon . | . . . . . . . . . . . . . Unidentified Prototypes 6 | . . . . . 3 3 . . . . . . Parts Lost 13 | . . 1 . . 2 . . 2 . . . 8 Power 2 | . . . . . . . . 1 . . . 1 Propulsion 8 | . . 1 . . 1 . . 1 . . . 5 Utility 2 | . . . . . 1 . . . . . . 1 Weapon 1 | . . . . . . . . . . . . 1 Highest Loss Streak 4 | . . 1 . . 1 . . 2 . . . 4 To Critical Strikes 1 | . . . . . 1 . . . . . . . Average Backups 12 | 5 13 14 14 14 14 16 7 4 4 5 4 5 Power 1 | . 1 1 1 1 1 1 . . . . . . Propulsion 2 | 4 3 2 2 2 2 4 1 . . . . . Utility 5 | . 4 6 6 6 5 7 3 2 3 4 3 3 Weapon 3 | . 4 5 5 5 4 2 2 1 1 1 1 1 Tool/Special . | . . . . . . . . . . . . . Unused Backups 38 | 1 6 . . . 18 1 3 . . . 1 8 Power 7 | . . . . . 5 . 1 . . . . 1 Propulsion 6 | 1 2 . . . 2 . 1 . . . . . Utility 13 | . 2 . . . 2 1 1 . . . 1 6 Weapon 12 | . 2 . . . 9 . . . . . . 1 Tool/Special . | . . . . . . . . . . . . . Average Slot Usage (%) 98 | . 100 99 100 100 99 99 96 99 91 92 92 86 Engine 9 | . 14 14 14 14 9 9 1 . . . . 1 Core 1 | . . . . . . . 5 7 7 7 7 4 Treads 15 | . 12 17 14 14 17 32 5 . . . . . Wheel 10 | . 14 9 14 14 18 3 . . . . . . Flight 4 | . . . . . . . 24 29 23 23 23 22 Device 13 | . 13 14 14 14 9 11 19 23 23 23 23 13 Storage 9 | . 14 14 14 14 9 9 1 . . . . 2 Processor 4 | . . . . . 8 6 1 . 1 . 3 10 Hackware 3 | . . . . . . . 12 15 15 15 15 17 Protection 5 | . . . . . 9 8 6 7 5 7 3 1 Ballistic Gun 18 | . 27 27 28 28 17 17 8 7 7 7 7 4 Slashing Weapon 1 | . . . . . . . 5 6 . 7 7 6 Peak Build Rating 51 | 7 11 11 11 11 28 30 33 33 32 32 34 51 Average Rating 22 | 5 9 10 11 11 23 29 30 32 31 32 32 42 On Entrance 20 | . 7 11 11 11 11 28 30 32 32 32 32 33 Avg Prop Armor Cover (%) 11 | . 10 10 11 11 11 13 . . . . . . Naked Turns . | . . . . . . . . . . . . . Heaviest Build 67 | 13 32 32 32 32 47 67 63 24 24 21 21 25 Greatest Support 80 | 20 20 40 10 10 44 80 80 29 24 24 24 32 Greatest Overweight (x) 5 | 1 3 3 3 3 2 5 1 . . . . . Average Overweight (x) . | . 2 2 3 3 1 1 . . . . . . Largest Inventory Capacity 20 | 8 15 15 15 15 15 20 20 5 5 5 5 10 Average Capacity 13 | 7 14 15 15 15 15 19 8 5 5 5 5 6 Most Carried 17 | 8 15 15 14 15 15 17 17 5 5 5 5 7 Average Carried 12 | 6 13 14 14 14 14 16 7 4 4 5 4 5 Final Capacity 20 | 8 15 15 15 15 15 20 5 5 5 5 5 10 Final Carried 17 | 8 15 14 14 15 15 17 5 4 5 5 5 7 Class Distribution -------------------- 71% | Mutant 10% | Hacker-Sprinter 7% | Commander-Mutant 6% | Scavenger-Sprinter Dominant Class ---------------- Mutant | -10/Materials Mutant | -10/Mines Mutant | -10/Exiles Mutant | -9/Mines Mutant | -8/Materials Mutant | -8/Storage Scavenger-Sprinter | -7/Factory Scavenger-Sprinter | -7/Lower Caves Hacker-Sprinter | -7/Lower Caves Hacker-Sprinter | -7/Data Miner Hacker-Sprinter | -6/Proximity Caves Hacker-Sprinter | -6/Factory Resources | -11 -10 -10 -10 -9 -8 -8 -7 -7 -7 -7 -6 -6 ----------- Run | Yrd Mat Min Exi Min Mat Sto Fac Low Low Dat Pro Fac Matter Collected 4324 | 370 964 231 16 . 1583 832 10 268 30 . 20 . Remotely . | . . . . . . . . . . . . . Salvage Created 5303 | 198 917 116 . . 2429 1422 10 184 . . . 27 Parts 320 | 16 59 18 . . 140 75 2 6 . . . 4 Haulers Intercepted 9 | . 1 . . . 5 3 . . . . . . Recyclers Shooed 6 | 1 2 1 . . . 2 . . . . . . Parts Field Recycled . | . . . . . . . . . . . . . Retrieved Matter . | . . . . . . . . . . . . . Parts Self-Destructed 11 | . . . . . . . . 7 4 . . . Prevented 4 | . . . . . . . . 1 3 . . . Parts Restored . | . . . . . . . . . . . . . Kills | -11 -10 -10 -10 -9 -8 -8 -7 -7 -7 -7 -6 -6 ------- Run | Yrd Mat Min Exi Min Mat Sto Fac Low Low Dat Pro Fac Combat Hostiles Destroyed 85 | . 13 8 . . 40 20 . 4 . . . . Guns 75 | . 13 7 . . 38 15 . 2 . . . . AOE 9 | . . 1 . . 2 4 . 2 . . . . Classes Destroyed 14 | 3 6 . . . 3 2 . . . . . . Worker 10 | 1 1 1 . . 4 3 . . . . . . Builder 2 | . 1 . . . 1 . . . . . . . Tunneler 9 | 4 3 . . . 1 . 1 . . . . . Hauler 9 | . 1 . . . 5 3 . . . . . . Recycler 10 | 1 3 . . . 2 4 . . . . . . Operator 7 | . 2 . . . 2 2 . . . . . 1 Watcher 6 | . 1 . . . 5 . . . . . . . Swarmer 23 | . 1 8 . . 10 . . 4 . . . . Grunt 43 | . 12 . . . 19 12 . . . . . . Brawler 2 | . . . . . 2 . . . . . . . Protector 1 | . . . . . . 1 . . . . . . Sentry 14 | . . . . . 8 6 . . . . . . Demolisher 1 | . . . . . . 1 . . . . . . Hunter 1 | . . . . . 1 . . . . . . . Packrat 1 | . . . . . . . . 1 . . . . Best Kill Streak 13 | 5 6 3 . . 6 13 1 4 . . . 1 Combat Bots Only 10 | . 3 3 . . 5 10 . 4 . . . . Max Kills in Single Turn 5 | 1 1 1 . . 2 5 1 2 . . . 1 Gunslinging . | . . . . . . . . . . . . . Exploded 3 | . . 1 . . 2 3 . 2 . . . . Melee . | . . . . . . . . . . . . . Uniques/NPCs Destroyed . | . . . . . . . . . . . . . Combat | -11 -10 -10 -10 -9 -8 -8 -7 -7 -7 -7 -6 -6 -------- Run | Yrd Mat Min Exi Min Mat Sto Fac Low Low Dat Pro Fac Hostile Shots Fired 385 | . 47 46 . . 123 60 32 23 . . 4 50 Missed 115 | . 7 11 . . 21 18 20 10 . . 2 26 Hits 270 | . 40 35 . . 102 42 12 13 . . 2 24 Melee 1 | . . . . . 1 . . . . . . . Projectile 269 | . 40 35 . . 101 42 12 13 . . 2 24 AOE 5 | . . . . . . 5 . . . . . . Critical Strikes 8 | . . . . . 7 1 . . . . . . Damage Taken 3935 | . 474 289 . . 1383 924 103 211 . . 56 495 Core 491 | . 155 32 . . 91 82 . 33 . . 33 65 Absorbed by Shields 10 | . . . . . . . . . . . . 10 Regen/Repaired (Parts) 355 | . . . . . . 355 . . . . . . Core Remaining (%) 70 | 100 . . . 25 . 68 . . . . 90 . Volleys Fired 366 | 15 95 25 . . 135 81 1 14 . . . . Largest 2 | 2 2 2 . . 2 2 2 1 . . . . Hottest 55 | 40 46 46 . . 55 50 50 36 . . . . Shots Fired 706 | 30 183 48 . . 271 158 2 14 . . . . Gun 696 | 30 182 46 . . 270 153 2 13 . . . . Cannon . | . . . . . . . . . . . . . Launcher 10 | . 1 2 . . 1 5 . 1 . . . . Special . | . . . . . . . . . . . . . Kinetic 696 | 30 182 46 . . 270 153 2 13 . . . . Thermal . | . . . . . . . . . . . . . Explosive 4 | . 1 2 . . 1 . . . . . . . Electromagnetic 6 | . . . . . . 5 . 1 . . . . Robot Hit Streak 19 | 4 14 4 . . 16 15 17 19 . . . . Robot Miss Streak 8 | 2 4 8 . . 3 4 . 5 . . . . Penetration Max . | . . . . . . . . . . . . . Secondary Targets 6 | . . 2 . . 2 2 . . . . . . Max Gunslinging Chain 1 | . . 1 . . 1 1 . . . . . . Shots Hit Robots 446 | 17 112 19 . . 190 94 3 7 . 1 . 3 Core Hits 215 | 7 44 12 . . 91 55 . 5 . . . 1 Critical Kills 2 | . . . . . 2 . . . . . . . Critical Parts Destroyed 6 | . . . . . 4 2 . . . . . . Critical Strikes 8 | . . . . . 6 2 . . . . . . Destroy 8 | . . . . . 6 2 . . . . . . Melee Attacks 112 | . . . . . 7 . 24 5 3 22 . 51 Impact 7 | . . . . . 7 . . . . . . . Slashing 105 | . . . . . . . 24 5 3 22 . 51 Piercing . | . . . . . . . . . . . . . Sneak Attacks 4 | . . . . . 1 . 1 . . 1 . 1 Combat Hostiles . | . . . . . . . . . . . . . Follow-up Attacks . | . . . . . . . . . . . . . Damage Inflicted 8494 | 223 1479 414 . . 3430 2349 100 262 . 76 . 161 Guns 6928 | 223 1479 292 . . 3180 1617 33 104 . . . . Cannons . | . . . . . . . . . . . . . Explosions 1122 | . . 122 . . 160 732 . 108 . . . . Melee 426 | . . . . . 72 . 67 50 . 76 . 161 Ramming 18 | . . . . . 18 . . . . . . . Kinetic 6928 | 223 1479 292 . . 3180 1617 33 104 . . . . Thermal 41 | . . . . . . . . 41 . . . . Explosive 705 | . . 122 . . 160 423 . . . . . . Electromagnetic 376 | . . . . . . 309 . 67 . . . . Impact 72 | . . . . . 72 . . . . . . . Slashing 354 | . . . . . . . 67 50 . 76 . 161 Piercing . | . . . . . . . . . . . . . Highest Corruption 4 | . . . . . 4 4 . . . . . . Average Corruption 3 | . . . . . 2 4 . . . . . . Corruption Purged . | . . . . . . . . . . . . . Corruption Blocked . | . . . . . . . . . . . . . Effects 62 | . . . . . 24 38 . . . . . . Message Errors 18 | . . . . . 5 13 . . . . . . Matter Fused 13 | . . . . . 11 2 . . . . . . Heat Flow Errors 2 | . . . . . 1 1 . . . . . . Energy Discharges 7 | . . . . . 2 5 . . . . . . Parts Rejected 1 | . . . . . . 1 . . . . . . Parts Fused 1 | . . . . . 1 . . . . . . . Data Loss (minor) 9 | . . . . . 1 8 . . . . . . Data Loss (major) 3 | . . . . . 1 2 . . . . . . Misfires 4 | . . . . . 1 3 . . . . . . Alerts 2 | . . . . . 1 1 . . . . . . Weapon Failures 2 | . . . . . . 2 . . . . . . Overload Shots . | . . . . . . . . . . . . . Overflow Damage 156 | . . . . . 52 . 45 31 . 16 . 12 Projectiles . | . . . . . . . . . . . . . Explosions . | . . . . . . . . . . . . . Melee 156 | . . . . . 52 . 45 31 . 16 . 12 Knockbacks . | . . . . . . . . . . . . . Impact . | . . . . . . . . . . . . . Kinetic . | . . . . . . . . . . . . . Secondary . | . . . . . . . . . . . . . Self-Inflicted Damage 45 | . . . . . 39 6 . . . . . . Shots 2 | . . . . . 1 1 . . . . . . Rammed 3 | . . 1 . . 2 . . . . . . . Targets Rammed 4 | . . 1 . . 2 1 . . . . . . Kicked . | . . . . . . . . . . . . . Crushed 1 | . . . . . . 1 . . . . . . Highest Temperature 268 | . 36 12 . . 100 268 7 8 . . . 25 Average Temperature 34 | . 11 6 . . 14 89 4 5 . . . 9 Received Heat Transfer 1245 | . 243 . . . 576 324 24 12 . . . 66 Siege Activations . | . . . . . . . . . . . . . Martial Activations . | . . . . . . . . . . . . . Shielding Activations . | . . . . . . . . . . . . . Robots Disrupted . | . . . . . . . . . . . . . Combat Hostiles . | . . . . . . . . . . . . . Robots Corrupted 2 | . . . . . 1 1 . . . . . . Combat Hostiles 1 | . . . . . . 1 . . . . . . Parts Fried . | . . . . . . . . . . . . . Impact Corruptions 1 | . . . . . 1 . . . . . . . Robots Melted . | . . . . . . . . . . . . . Combat Hostiles . | . . . . . . . . . . . . . Parts Melted . | . . . . . . . . . . . . . Heat Transferred 100 | . . . . . . . . 100 . . . . Parts Sabotaged . | . . . . . . . . . . . . . Parts Stolen . | . . . . . . . . . . . . . Parts Stripped . | . . . . . . . . . . . . . Power Chain Reactions 1 | . . . . . . . . 1 . . . . Alert | -11 -10 -10 -10 -9 -8 -8 -7 -7 -7 -7 -6 -6 ------- Run | Yrd Mat Min Exi Min Mat Sto Fac Low Low Dat Pro Fac Maximum Alert Level 3 | . . . . . 2 3 2 . . . . . Low Security (%) 63 | 100 100 100 . 100 67 . . . . . . 100 Level 1 9 | . . . . . 10 9 85 . . . . . Level 2 16 | . . . . . 22 39 14 . . . . . Level 3 10 | . . . . . . 49 . . . . . . Level 4 . | . . . . . . . . . . . . . Level 5 . | . . . . . . . . . . . . . High Security . | . . . . . . . . . . . . . Max Security . | . . . . . . . . . . . . . Peak Influence 783 | 10 107 114 . . 543 783 423 . . . . 71 Initial 311 | . . . . . . 202 311 . . . . . Average 215 | 1 29 34 . . 184 611 339 . . . . 15 Influence Increases 4296 | 30 529 246 . . 1315 1275 332 135 45 . 15 374 Destroy 0b10 Robot/C 1900 | . 260 180 . . 800 580 . 80 . . . . Destroy 0b10 Robot/NC 290 | 30 60 10 . . 100 80 5 . . . . 5 Destroy Leader 462 | . 64 30 . . 200 158 . 10 . . . . Allied During Kill 260 | . . 1 . . . 259 . . . . . . Successful Hack 213 | . 60 . . . 59 27 8 . . . . 59 Select Force Hacks 120 | . 60 . . . 60 . . . . . . . Disable Machine 105 | . . . . . . 75 . . . . . 30 Anti-Garrison Action 150 | . . . . . . . 150 . . . . . Destroy Structure 151 | . 10 10 . . 36 36 19 . . . . 40 Partial Spotted 90 | . . . . . 30 15 15 . . . . 30 Lose Combat Pursuer 555 | . 15 15 . . 30 45 135 45 45 . 15 210 Influence Decreases 4253 | 30 529 234 12 . 834 1071 604 353 168 72 15 331 Entered New Map 928 | . . . 12 . . 279 374 153 38 72 . . Time Decay 2878 | 30 529 224 . . 664 612 230 180 130 . 15 264 Lost Part 109 | . . 10 . . 20 . . 20 . . . 59 Lost Ally 180 | . . . . . . 180 . . . . . . Purge Threat 158 | . . . . . 150 . . . . . . 8 Squads Dispatched 29 | . 5 . . . 6 8 3 . . . . 7 Investigation 12 | . 4 . . . 4 . 1 . . . . 3 Extermination 2 | . . . . . . . . . . . . 2 Reinforcement 8 | . 1 . . . 2 3 . . . . . 2 Assault 4 | . . . . . . 2 2 . . . . . Garrison 3 | . . . . . . 3 . . . . . . Intercept . | . . . . . . . . . . . . . Searches Triggered . | . . . . . . . . . . . . . Construction Impeded . | . . . . . . . . . . . . . Haulers Reinforced . | . . . . . . . . . . . . . Active Scanning Responses . | . . . . . . . . . . . . . Cargo Convoy Interrupts . | . . . . . . . . . . . . . Stealth | -11 -10 -10 -10 -9 -8 -8 -7 -7 -7 -7 -6 -6 --------- Run | Yrd Mat Min Exi Min Mat Sto Fac Low Low Dat Pro Fac Distress Signals 9 | . 1 . . . 5 3 . . . . . . Communications Jammed . | . . . . . . . . . . . . . Distress Signals . | . . . . . . . . . . . . . Times Spotted 185 | . 26 10 . . 52 45 17 8 2 4 1 20 Peak Tracking Total 12 | . 5 3 . . 6 12 8 4 3 4 1 4 Tactical Retreats 22 | . 1 1 . . 2 2 4 2 1 . 1 8 Traps | -11 -10 -10 -10 -9 -8 -8 -7 -7 -7 -7 -6 -6 ------- Run | Yrd Mat Min Exi Min Mat Sto Fac Low Low Dat Pro Fac Traps Triggered 7 | . 1 . . . 1 1 . . . . . 4 Indirectly . | . . . . . . . . . . . . . Trap Hack Attempts . | . . . . . . . . . . . . . Triggered . | . . . . . . . . . . . . . Disarmed . | . . . . . . . . . . . . . Reprogrammed . | . . . . . . . . . . . . . Reused . | . . . . . . . . . . . . . Traps Extracted . | . . . . . . . . . . . . . Installed . | . . . . . . . . . . . . . Triggered . | . . . . . . . . . . . . . Machines | -11 -10 -10 -10 -9 -8 -8 -7 -7 -7 -7 -6 -6 ---------- Run | Yrd Mat Min Exi Min Mat Sto Fac Low Low Dat Pro Fac Machines Disabled 9 | . . . . . . 5 1 . . 1 . 2 Max in Single Turn 2 | . . . . . . 2 1 . . 1 . 1 Garrison Access 4 | . . . . . 1 1 1 . . . . 1 Machines Repaired . | . . . . . . . . . . . . . Machines Dismantled . | . . . . . . . . . . . . . Machines Sabotaged . | . . . . . . . . . . . . . Overloaded Fab Kills . | . . . . . . . . . . . . . Hacking | -11 -10 -10 -10 -9 -8 -8 -7 -7 -7 -7 -6 -6 --------- Run | Yrd Mat Min Exi Min Mat Sto Fac Low Low Dat Pro Fac Machines Accessed 64 | . 9 . 4 . 12 10 7 1 . 4 . 17 Terminals 37 | . 7 . . . 7 8 4 . . . . 11 Fabricators 4 | . . . . . . . 1 . . . . 3 Repair Stations 1 | . . . . . . 1 . . . . . . Recycling Units 4 | . 2 . . . 2 . . . . . . . Scanalyzers 5 | . . . . . 2 . 1 . . . . 2 Garrison Access 4 | . . . . . 1 1 1 . . . . 1 Total Hacks 203 | . 28 . 4 . 36 31 14 1 . 27 . 62 Successful 141 | . 18 . 4 . 22 22 4 1 . 27 . 43 Failed 61 | . 10 . . . 14 9 9 . . . . 19 Catastrophic 7 | . . . . . 1 2 2 . . . . 2 Database Lockouts 1 | . . . . . . . 1 . . . . . Manual 82 | . 17 . . . 22 14 5 . . . . 24 Terminals 129 | . 26 . . . 25 22 7 . . . . 49 Fabricators 9 | . . . . . . . 2 . . . . 7 Repair Stations 8 | . . . . . . 8 . . . . . . Recycling Units 4 | . 2 . . . 2 . . . . . . . Scanalyzers 15 | . . . . . 8 . 2 . . . . 5 Garrison Access 6 | . . . . . 1 1 3 . . . . 1 Terminal Hacks 71 | . 8 . 4 . 3 6 1 1 . 27 . 21 Record 19 | . 2 . 4 . . 1 . . . 11 . 1 Part Schematic 11 | . . . . . . 1 . . . 8 . 2 Robot Schematic 5 | . . . . . . . . . . 5 . . Robot Analysis 1 | . . . . . . . . . . . . 1 Prototype ID Bank 6 | . 1 . . . . . 1 . . 3 . 1 Open Door 4 | . . . . . . 3 . 1 . . . . Branch Access Points 1 | . . . . . . . . . . . . 1 Emergency Access Points 1 | . . . . . . . . . . . . 1 Machine Index 1 | . . . . . . . . . . . . 1 Terminal Index 2 | . 1 . . . . . . . . . . 1 Fabricator Index 1 | . . . . . . . . . . . . 1 Unreport Threat 3 | . . . . . 1 . . . . . . 2 Locate Traps 6 | . 1 . . . 1 . . . . . . 4 Dispatch Records 2 | . 1 . . . . 1 . . . . . . Maintenance Status 1 | . . . . . . . . . . . . 1 Patrol Status 1 | . . . . . . . . . . . . 1 Recall Investigation 1 | . 1 . . . . . . . . . . . Recall Extermination 1 | . . . . . . . . . . . . 1 Hauler Manifests 4 | . 1 . . . 1 . . . . . . 2 Fabricator Hacks 5 | . . . . . . . 1 . . . . 4 Load Schematic 4 | . . . . . . . 1 . . . . 3 Build 1 | . . . . . . . . . . . . 1 Repair Station Hacks 8 | . . . . . . 8 . . . . . . Scan Component 4 | . . . . . . 4 . . . . . . Repair 4 | . . . . . . 4 . . . . . . Recycling Unit Hacks . | . . . . . . . . . . . . . Scanalyzer 13 | . . . . . 7 . 1 . . . . 5 Retrieve Study 13 | . . . . . 7 . 1 . . . . 5 Garrison Access Hacks 3 | . . . . . 1 1 . . . . . 1 Seal Access 3 | . . . . . 1 1 . . . . . 1 Unauthorized Hacks 41 | . 10 . . . 11 7 1 . . . . 12 Terminals 35 | . 8 . . . 9 7 1 . . . . 10 Botnet 18 | . 3 . . . 3 3 1 . . . . 8 Skim 17 | . 5 . . . 6 4 . . . . . 2 Fabricators 2 | . . . . . . . . . . . . 2 Recompile 2 | . . . . . . . . . . . . 2 Repair Stations . | . . . . . . . . . . . . . Recycling Units 4 | . 2 . . . 2 . . . . . . . Tunnel 4 | . 2 . . . 2 . . . . . . . Scanalyzers . | . . . . . . . . . . . . . Garrison Access . | . . . . . . . . . . . . . Data Cores Recovered 2 | . 1 . . . . . . . . . . 1 Used 1 | . . . . . . . . . . . . 1 Hacking Detections 43 | . 7 . . . 9 8 7 . . . . 12 Full Trace Events 3 | . 1 . . . 1 . 1 . . . . . Feedback Events . | . . . . . . . . . . . . . Feedback Blocked . | . . . . . . . . . . . . . Robot Schematics Acquired 5 | . . . . . . . . . . 5 . . Robots Built . | . . . . . . . . . . . . . Authchips . | . . . . . . . . . . . . . Time . | . . . . . . . . . . . . . Total Robot Build Rating . | . . . . . . . . . . . . . Part Schematics Acquired 11 | . . . . . . 1 . . . 8 . 2 Parts Built 1 | . . . . . . . . . . . . 1 Authchips 1 | . . . . . . . . . . . . 1 Time 152 | . . . . . . . . . . . . 152 Total Part Build Rating 5 | . . . . . . . . . . . . 5 Part Studies Acquired 13 | . . . . . 7 . 1 . . . . 5 Parts Repaired 4 | . . . . . . 4 . . . . . . Time 190 | . . . . . . 190 . . . . . . Parts Recycled . | . . . . . . . . . . . . . Recycled Matter . | . . . . . . . . . . . . . Retrieved Matter . | . . . . . . . . . . . . . Retrieved Components . | . . . . . . . . . . . . . Parts Scanalyzed . | . . . . . . . . . . . . . Part Schematics Acquired . | . . . . . . . . . . . . . Parts Damaged . | . . . . . . . . . . . . . Bothacking | -11 -10 -10 -10 -9 -8 -8 -7 -7 -7 -7 -6 -6 ------------ Run | Yrd Mat Min Exi Min Mat Sto Fac Low Low Dat Pro Fac Used RIF Installer . | . . . . . . . . . . . . . Robots Hacked . | . . . . . . . . . . . . . Non-combat . | . . . . . . . . . . . . . Combat . | . . . . . . . . . . . . . Robot Hacks Applied . | . . . . . . . . . . . . . Relay Couplers Released 3 | . . . . . . . 3 . . . . . Machine Destruction 3 | . . . . . . . 3 . . . . . Fabnet Peak Effective % . | . . . . . . . . . . . . . Robots Rewired . | . . . . . . . . . . . . . Allies Hacked . | . . . . . . . . . . . . . Hacks Repelled . | . . . . . . . . . . . . . Allies | -11 -10 -10 -10 -9 -8 -8 -7 -7 -7 -7 -6 -6 -------- Run | Yrd Mat Min Exi Min Mat Sto Fac Low Low Dat Pro Fac Total Allies 11 | . . 1 . . . 10 . . . . . . Largest Group 10 | . . 1 . . . 10 . . . . . . Highest-Rated Group 173 | . . 31 . . . 173 . . . . . . Highest-Rated Ally 31 | . . 31 . . . 29 . . . . . . Total Orders . | . . . . . . . . . . . . . Ally Attacks 106 | . . 2 . . . 104 . . . . . . Total Damage 1335 | . . 42 . . . 1293 . . . . . . Kills 15 | . . 2 . . . 13 . . . . . . Allies Corrupted . | . . . . . . . . . . . . . Allies Melted . | . . . . . . . . . . . . . Intel | -11 -10 -10 -10 -9 -8 -8 -7 -7 -7 -7 -6 -6 ------- Run | Yrd Mat Min Exi Min Mat Sto Fac Low Low Dat Pro Fac Active Infowar (turns) 11240 | 33 1842 877 612 284 3377 2000 489 374 263 114 210 765 Optics 869 | . . . . . . . . . . . 104 765 Structural 2121 | . . . . . . . 395 374 263 114 210 765 Seismic 10993 | 33 1842 877 612 284 3377 2000 474 374 263 114 210 533 Robot Analysis Total 1 | . . . . . . . . . . . . 1 Derelict Logs Recovered 6 | . . 1 . . . . . . 2 . 3 . Drone Launches . | . . . . . . . . . . . . . Drone Recoveries . | . . . . . . . . . . . . . Exploration | -11 -10 -10 -10 -9 -8 -8 -7 -7 -7 -7 -6 -6 ------------- Run | Yrd Mat Min Exi Min Mat Sto Fac Low Low Dat Pro Fac Turns Passed 11364 | 127 1871 877 612 284 3378 2000 489 374 263 114 210 765 Spaces Moved 8710 | 71 797 540 490 175 1539 636 687 628 677 137 635 1698 Core 5 | 5 . . . . . . . . . . . . Treads 950 | . 4 180 . . 250 466 50 . . . . . Legs . | . . . . . . . . . . . . . Wheels 3343 | 66 793 360 490 175 1289 170 . . . . . . Hover . | . . . . . . . . . . . . . Flight 4412 | . . . . . . . 637 628 677 137 635 1698 Fastest Speed 28 | 50 80 125 125 125 95 110 29 29 32 32 32 28 Average Speed 79 | 82 116 143 125 125 119 168 39 29 32 32 32 31 Slowest Speed 240 | 100 240 240 125 125 240 219 165 32 32 32 32 37 Overloaded Moves . | . . . . . . . . . . . . . Propulsion Burnouts . | . . . . . . . . . . . . . Robots Hopped 11 | . . . . . . . 1 . . . . 10 Potential Cave-ins . | . . . . . . . . . . . . . Cave-ins Triggered . | . . . . . . . . . . . . . Exploration Rate (%) 70 | 4 99 99 94 36 89 95 27 81 74 81 78 55 Regions Visited 12 Branch Regions 8 Pre-discovered Areas 9 | . 3 1 . . 3 . . . . 1 1 . Known Exits Taken 5 | . . . . . . 1 1 1 1 . 1 . Unknown Exits Taken 7 | 1 1 1 1 1 1 . . . . 1 . . Scrap Searched 13 | . . 2 . 3 . . . 2 2 . 4 . Spaces Dug 114 | . 9 8 . . 15 14 19 6 3 . . 40 Terrain Destroyed 136 | . 9 13 . . 15 31 19 6 3 . . 40 Melee 69 | . . . . . 4 . 19 3 3 . . 40 Projectile . | . . . . . . . . . . . . . AOE 67 | . 9 13 . . 11 31 . 3 . . . . Terrain Rammed . | . . . . . . . . . . . . . Walls Destroyed . | . . . . . . . . . . . . . Machines Disabled . | . . . . . . . . . . . . . Actions | -11 -10 -10 -10 -9 -8 -8 -7 -7 -7 -7 -6 -6 --------- Run | Yrd Mat Min Exi Min Mat Sto Fac Low Low Dat Pro Fac Total 12396 | 105 1565 601 489 240 2894 1468 871 800 717 173 641 1832 Wait 2844 | 3 611 31 . 65 1077 706 120 149 32 15 . 35 Move 8678 | 70 796 539 489 174 1538 635 684 627 676 136 634 1680 Hop 9 | . . . . . . . 1 . . . . 8 Pick Up 97 | 8 23 . . 1 37 9 5 1 2 . 3 8 Fast Attach 39 | 7 . 1 . . 12 10 2 . . . . 7 Attach 30 | . . 1 . . 9 3 11 1 1 . . 4 Detach 3 | . . . . . 1 1 . . . . . 1 Swap 66 | 1 19 2 . . 22 7 4 2 2 . 2 5 Drop 120 | 1 21 1 . . 54 15 19 1 1 . 2 5 Fire 366 | 15 95 25 . . 135 81 1 14 . . . . Melee 112 | . . . . . 7 . 24 5 3 22 . 51 Ram 1 | . . . . . 1 . . . . . . . Kick . | . . . . . . . . . . . . . Crush 3 | . . 1 . . 1 1 . . . . . . Escape Stasis 28 | . . . . . . . . . . . . 28 Rewire . | . . . . . . . . . . . . . Trap . | . . . . . . . . . . . . . Miscellaneous . | . . . . . . . . . . . . . Route ------- -11/Scrapyard -10/Materials (discovered 5 exits: [*Mat x3] / [*Min] / *Sub) -10/Mines (discovered 4 exits: [*Mat x2] / *Exi / *Sub) -10/Exiles (discovered 2 exits: *Min x2) -9/Mines -8/Materials (discovered 4 exits: *Fac x3 / *Sto) -8/Storage (discovered 2 exits: *Fac / *Rec) -7/Factory (discovered 3 exits: *Fac / *Low x2) -7/Lower Caves -7/Lower Caves (discovered 2 exits: *Fac / *Dat) -7/Data Miner -6/Proximity Caves -6/Factory (discovered 3 exits: *Fac / *Low x2) History --------- Turn | Location | Event 2 | -11/Scrapyard | Met Revision 17 16 | -11/Scrapyard | Discovered new exit (range 16) 128 | -11/Scrapyard | Entered Materials 308 | -10/Materials | Build established: Mutant 525 | -10/Materials | Discovered new exit (range 6) 614 | -10/Materials | Discovered new exit (range 16) 828 | -10/Materials | Derelicts attacked the area 1207 | -10/Materials | Core integrity fell below 50% 1374 | -10/Materials | Learned Storage emergency access door positions 1384 | -10/Materials | Discovered new exit (range 6) 1400 | -10/Materials | Learned location of Mines (-10) 1423 | -10/Materials | Learned 2 Storage zone layouts 1428 | -10/Materials | Learned location of 1 exit from Storage 1443 | -10/Materials | Learned 2 Storage zone layouts 1467 | -10/Materials | Learned Storage stockpile data 1508 | -10/Materials | Discovered new exit (range 9) 1567 | -10/Materials | Discovered new exit (range 8) 1999 | -10/Materials | Entered Mines 2000 | -10/Mines | Identified exit to Subcaves 2039 | -10/Mines | Learned location of Zion (-6) 2118 | -10/Mines | Found a hidden stash of uninstalled traps 2137 | -10/Mines | Discovered new exit (range 6) 2196 | -10/Mines | Discovered new exit (range 13) 2602 | -10/Mines | Received a Mining Laser from a helpful Derelict 2870 | -10/Mines | Deemed a non-threat by the Exiles lab entrance 2871 | -10/Mines | Discovered new exit (range 5) 2876 | -10/Mines | Entered Exiles 2876 | -10/Exiles | Found Exiles lab abandoned 2897 | -10/Exiles | Discovered new exit (range 15) 3470 | -10/Exiles | Discovered new exit (range 15) 3488 | -10/Exiles | Entered Mines 3544 | -9/Mines | YI-UF0 nonchalantly dropped a Grenade Launcher on the ground 3564 | -9/Mines | Assembled infested the area 3569 | -9/Mines | Assisted by a Guerilla fighting off Assembled 3759 | -9/Mines | Discovered new exit (range 8) 3772 | -9/Mines | Entered Materials 3772 | -8/Materials | Evolved 4 slots: Propulsion x2, Utility x2 4595 | -8/Materials | Discovered new exit (range 5) 4689 | -8/Materials | Discovered new exit (range 5) 5574 | -8/Materials | Discovered new exit (range 10) 5680 | -8/Materials | Learned 2 Lower Caves zone layouts 5745 | -8/Materials | Learned Factory machine intel 5760 | -8/Materials | Learned Factory terminal intel 5763 | -8/Materials | Identified exit to Factory 5764 | -8/Materials | Learned Storage non-interactive machine intel 5778 | -8/Materials | Learned 2 Lower Caves zone layouts 7150 | -8/Materials | Entered Storage 7151 | -8/Storage | Identified exit to Recycling 7153 | -8/Storage | Loaded intel: 30 non-interactive machine locations 7174 | -8/Storage | Assisted by bots powering up and referring to "LRC-V3" 7327 | -8/Storage | Garrison activated, responded to threat 7458 | -8/Storage | Build established: Commander-Mutant 7600 | -8/Storage | Used back door to open Recycling access 7950 | -8/Storage | First assault squad dispatched 8080 | -8/Storage | Lost 5 allies 8109 | -8/Storage | Destroyed 10 combat bots 8310 | -8/Storage | Build established: Mutant 8372 | -8/Storage | Repaired Hrd. Medium Armor Plating 8405 | -8/Storage | Repaired Cooling System 8467 | -8/Storage | Repaired Enh. Autogun 8528 | -8/Storage | Repaired Enh. Autogun 9150 | -8/Storage | Entered Factory 9150 | -7/Factory | Evolved 2 slots: Utility x2 9151 | -7/Factory | Identified exit to Lower Caves 9152 | -7/Factory | Loaded intel: 232 machine locations 9153 | -7/Factory | Loaded intel: 26 terminal locations 9519 | -7/Factory | Discovered new exit (range 11) 9535 | -7/Factory | Build established: Scavenger-Sprinter 9615 | -7/Factory | Central database locked down 9639 | -7/Factory | Entered Lower Caves 9640 | -7/Lower Caves | Identified exit to Lower Caves 9872 | -7/Lower Caves | Encountered a Warlord checkpoint 10005 | -7/Lower Caves | Spotted B-75 Beast 10013 | -7/Lower Caves | Entered another Lower Caves area 10137 | -7/Lower Caves | Learned Factory stockpile data 10147 | -7/Lower Caves | Learned Factory security intel 10209 | -7/Lower Caves | Discovered new exit (range 13) 10232 | -7/Lower Caves | Identified exit to Factory 10265 | -7/Lower Caves | Discovered new exit (range 6) 10269 | -7/Lower Caves | Identified exit to Data Miner 10275 | -7/Lower Caves | Spotted B-75 Beast 10276 | -7/Lower Caves | Entered Data Miner 10276 | -7/Data Miner | Discovered new exit (range 6) 10283 | -7/Data Miner | Met Data Miner 10290 | -7/Data Miner | Learned location of Section 7 (-3) 10290 | -7/Data Miner | Acquired the access code to Warlord's prototype stash 10291 | -7/Data Miner | Build established: Hacker-Sprinter 10295 | -7/Data Miner | Received God Mode back door access code from Data Miner 10308 | -7/Data Miner | Data Conduit disabled 10390 | -7/Data Miner | Entered Proximity Caves 10396 | -6/Proximity Caves | Spotted B-75 Beast 10468 | -6/Proximity Caves | Learned Factory emergency access door positions 10600 | -6/Proximity Caves | Entered Factory 10600 | -6/Factory | Evolved 2 slots: Propulsion x1, Utility x1 10622 | -6/Factory | Identified exit to Lower Caves 10679 | -6/Factory | Spotted B-75 Beast 10702 | -6/Factory | Watched by a mysterious "MATRIX" hacker. 10827 | -6/Factory | Fabricated Cld. Aerolev Unit? 11089 | -6/Factory | Discovered new exit (range 5) 11092 | -6/Factory | Identified exit to Factory 11165 | -6/Factory | Lost 4 parts (1p1n1u1w) 11365 | -6/Factory | Self-destructed Last Messages --------------- 3vRY mi574kE. 4ND TH3R3 5ur3 r 4 lot oF 7h3M. >>Force(Recompile) RECOMPILED[Authchip [Propulsion]] 11189_ ALERT: Suspicious activity at Fabricator F003. Dispatching Investigation squad. 11189_ Acquired Authchip [Propulsion]. 11233_ ALERT: Potential suspicious activity detected, Programmers report to Factory Zone 3E. 11244_ U-05 Engineer builds a Wall. 11273_ Acquired Lgt. Deuterium Engine+. 11283_ Nuclear Pulse Thruster+ destroyed. 11289_ U-05 Engineer builds a Wall. 11313_ K-01 Serf cleans the Subcomponent Replicator. 11364_ Penetrated by Slug. 11364_ Nuclear Pulse Thruster+ destroyed. 11364_ Penetrated by Slug. 11364_ Flight Unit+ destroyed. [Achievement: I Think I Know What's Going On] Map ----- +----------------------------------------------------+ | #### ## # ### # ####### | | ############# ########### ### # ####### | | ############# ########### ### # ##????# | | ???????????## ##???????##+#########+###### ##????# | | ???????????## ##???????## # ##????# | | ???????????## ##????????????????????????? ???? | | ???????????## ##????????????????????????? ?????? | | ???????????## ##????????????????????????? ?????? | | ???????????## ##????????????????????????? ?????? | | ??????????### ########### ??????????????? ?????? | | ??????????### ########### ??????????????? ?????? | | ??????????## # ???????????????"" ?????? | | ??????????## # ??????????????""" ?????? | | ??????????## # ??????????????""" ?????? | | ??????????## # ????????????????? ?????? | | ############ # ????????????????? ?????? | | ############ # ????????????????? ?????? | | ## # # ????????????????? ?????? | | ## # # ????????????????? ?????? | | ## !! # # ???????????????????????? | | ## """ ! # # ?????????????????????[?? | | ## """ + ##???????????????????????? | | ## """ # ##???????????????????????? | | + # ######### ???????????????? | | ## # ######### """"?????????? | | ############ @ ????? | | ############ ! u """"?????????? | | ?## k """ """ ="" """??????????? | | ?## """"" """"" =F" """??????????? | | ?## """"" """"" ==" """??????????? | | ?## h"" ???????????? | | ### """ """ ""???????????? | | ### """"" """"" "????????????? | | """"" """"" k "????????????? | | ### "????????????? | | ### hu ????????????? | | ?## ######### ??????????? | | ### ###############??????????? | | ### """ """ """ /// ##??????###### ??????????? | | """ """ """ // ##???????????????????????? | | """ """ """ // ##???????????????????????? | | ##???????????????????????? | | # ???????????????????????? | | ######### # ???????????????????????? | | ######+############ # ???????????????????????? | | """" ##???## # ???????????????????????? | | ""R" ##???## # ???????????????????????? | | " " "" " ##???## # ???????????????????????? | | " " + ??? + ???????????????????????? | | " " ##???? # ???????????+?+?????????? | +----------------------------------------------------+ Best States ------------- Heat Dissipation 56 Energy Generation 18 Energy Capacity 280 Matter Stores 300 Matter Capacity 300 Sight Range 20 Terrain Scan Density 10 Additional Mass Support 9 Armor Coverage 450 Resistance: EX 25 Evasion (%) 64 Targeting Accuracy 8 Recoil Reduction 4 Offensive Hacking 22 Defensive Hacking 12 Authchip Count 1 Item Schematics ----------------- Power Sword | -8/Storage | Hacked Combat Drone Bay | -7/Data Miner | Free Lgt. Regenerative Plating | -7/Data Miner | Free Cld. Aerolev Unit | -7/Data Miner | Free Gravity Neutralizer | -7/Data Miner | Free Com. Ion Cannon | -7/Data Miner | Free Field Propulsion Drive | -7/Data Miner | Free Adv. Shield Generator | -7/Data Miner | Free Adv. Plasma Cannon | -7/Data Miner | Free Imp. Flight Unit | -6/Factory | Hacked Dispersion Rifle | -6/Factory | Hacked Robot Schematics ------------------ X-62 Marksman | -7/Data Miner | Free G-50 Soldier | -7/Data Miner | Free M-28 Smith | -7/Data Miner | Free O-24 Administrator | -7/Data Miner | Free Y-64 Sentinel | -7/Data Miner | Free Fabricated ------------ Cld. Aerolev Unit | x1 | -6/Factory | Authchip Repaired ---------- Hrd. Medium Armor Plating | 25% | -8/Storage Cooling System | 46% | -8/Storage Enh. Autogun | 50% | -8/Storage Enh. Autogun | 55% | -8/Storage Studied --------- Lgt. Nuclear Core | -8/Materials | Hacked Minigun | -8/Materials | Hacked Mni. Grenade Launcher | -8/Materials | Hacked Wheel | -8/Materials | Hacked Com. Wheel | -8/Materials | Hacked VTOL Module | -8/Materials | Hacked Arm. Treads | -8/Materials | Hacked Flight Unit | -7/Factory | Hacked Mic. Nuclear Core | -6/Factory | Hacked Phase Cannon | -6/Factory | Hacked Chainsword | -6/Factory | Hacked Lgt. Deuterium Engine | -6/Factory | Hacked Nuclear Pulse Thruster | -6/Factory | Hacked Alien Tech Used ----------------- None Achievements -------------- I Think I Know What's Going On Challenges ------------ None Game ------ Seed GrenadeAssemblyArticulator Manual? 0 Play Time 03:00:19 Cumulative 175.7 hours Start 2026.04.21 @ 20:56:02 End 2026.04.22 @ 01:32:40 Sessions 1 Manual Loads 0 Difficulty Rogue Special Mode None Game No. 122 Rogue 122 Adventurer 0 Explorer 0 Win Type - Total 3 Types 3/0/0/0/0/0/0/0/0/0 Lore% 50 Gallery% 51 Achievement% 42 Wizard Run 0 Options --------- Layout 2 ASCII 0 Keyboard 0 Movement Mouse Keybinds 0 Fullscreen 1 Font 24/Smallcaps Map View 50x44 Zoom Use 0% Tactical HUD 1 Map Filters NONE Filters NONE Steam 1 RUN: d985c0db-43e0-40ae-9e12-284de36c0ed5